fUST/lending_fUST_20250915
["ID","MTS","AMOUNT","RATE_DAILY","PERIOD"]
[385623176,1757928646843,-500.0,0.00024657,7]
[385623178,1757928646855,-233.24851325,0.00024657,3]
[385623180,1757928646866,-513.56,0.00024657,3]
[385623182,1757928646876,-596.32335783,0.00024657,3]
[385623185,1757928646888,-480.0,0.00024657,3]
[385623187,1757928646899,-480.0,0.00024657,3]
[385623189,1757928646910,-480.0,0.00024657,3]
[385623191,1757928646921,-314.07729072,0.00024657,3]
[385623193,1757928646931,-480.0,0.00024657,3]
[385623195,1757928646944,-480.0,0.00024657,3]
[385623197,1757928646954,-459.17285011,0.00024657,3]
[385623199,1757928646968,-480.0,0.00024657,3]
[385623202,1757928646979,-324.15567206,0.00024657,3]
[385623204,1757928646989,-480.0,0.00024657,3]
[385623206,1757928646999,-480.0,0.00024657,2]
[385623208,1757928647012,-480.0,0.00024657,3]
[385623225,1757928647167,-480.0,0.00024657,3]
[385623227,1757928647177,-480.0,0.00024657,3]
[385623229,1757928647187,-480.0,0.00024657,3]
[385623231,1757928647196,-480.0,0.00024657,3]
[385623233,1757928647206,-480.0,0.00024657,3]
[385623235,1757928647217,-487.46611764,0.00024657,3]
[385623237,1757928647226,-480.0,0.00024657,3]
[385623238,1757928647236,-480.0,0.00024657,3]
[385623240,1757928647245,-480.0,0.00024657,3]
[385623242,1757928647255,-480.0,0.00024657,3]
[385623244,1757928647264,-547.53856204,0.00024657,3]
[385623246,1757928647273,-480.0,0.00024657,3]
[385623248,1757928647282,-8349.07,0.00024657,3]
[385623250,1757928647292,-480.0,0.00024657,3]
[385623252,1757928647301,-480.0,0.00024657,3]
[385623254,1757928647310,-480.0,0.00024657,3]
[385623256,1757928647319,-480.0,0.00024657,3]
[385623258,1757928647329,-480.0,0.00024657,3]
[385623260,1757928647339,-480.0,0.00024657,3]
[385623262,1757928647348,-480.0,0.00024657,3]
[385623264,1757928647358,-480.0,0.00024657,3]
[385623266,1757928647367,-480.0,0.00024657,3]
[385623268,1757928647377,-480.0,0.00024657,3]
[385623270,1757928647387,-480.0,0.00024657,3]
[385623272,1757928647397,-480.0,0.00024657,3]
[385623274,1757928647406,-480.0,0.00024657,3]
[385623276,1757928647415,-480.0,0.00024657,3]
[385623278,1757928647425,-480.0,0.00024657,3]
[385623280,1757928647434,-480.0,0.00024657,3]
[385623282,1757928647443,-480.0,0.00024657,3]
[385623284,1757928647452,-480.0,0.00024657,3]
[385623286,1757928647462,-480.0,0.00024657,3]
[385623288,1757928647471,-480.0,0.00024657,3]
[385623290,1757928647480,-480.0,0.00024657,3]
[385623292,1757928647489,-1397.89,0.00024657,3]
[385623294,1757928647498,-489.04,0.00024657,3]
[385623296,1757928647508,-480.0,0.00024657,3]
[385623298,1757928647517,-480.0,0.00024657,3]
[385623300,1757928647526,-480.0,0.00024657,3]
[385623302,1757928647535,-480.0,0.00024657,3]
[385623304,1757928647544,-480.0,0.00024657,3]
[385623306,1757928647554,-480.0,0.00024657,3]
[385623308,1757928647564,-480.0,0.00024657,3]
[385623310,1757928647574,-480.0,0.00024657,3]
[385623312,1757928647583,-480.0,0.00024657,3]
[385623314,1757928647592,-480.0,0.00024657,3]
[385623316,1757928647602,-480.0,0.00024657,3]
[385623318,1757928647611,-480.0,0.00024657,3]
[385623320,1757928647620,-492.58,0.00024657,3]
[385623322,1757928647630,-480.0,0.00024657,3]
[385623324,1757928647640,-480.0,0.00024657,3]
[385623326,1757928647649,-480.0,0.00024657,3]
[385623328,1757928647658,-480.0,0.00024657,3]
[385623330,1757928647668,-480.0,0.00024657,3]
[385623332,1757928647677,-480.0,0.00024657,3]
[385623334,1757928647686,-480.0,0.00024657,3]
[385623336,1757928647695,-480.0,0.00024657,3]
[385623338,1757928647705,-480.0,0.00024657,3]
[385623339,1757928647714,-480.0,0.00024657,3]
[385623342,1757928647723,-1933.65,0.00024657,3]
[385623343,1757928647732,-480.0,0.00024657,3]
[385623345,1757928647741,-480.0,0.00024657,3]
[385623347,1757928647750,-480.0,0.00024657,3]
[385623349,1757928647759,-480.0,0.00024657,3]
[385623351,1757928647768,-481.02,0.00024657,3]
[385623353,1757928647778,-491.21,0.00024657,3]
[385623355,1757928647787,-480.0,0.00024657,3]
[385623357,1757928647796,-199.14718302,0.00024658,2]
[385623360,1757928647806,-151.0,0.00024658,2]
[385623362,1757928647816,-198.0,0.00024658,2]
[385623364,1757928647825,-198.0,0.00024658,2]
[385623366,1757928647834,-500.0,0.00024658,2]
[385623368,1757928647844,-199.88288791,0.00024658,2]
[385623370,1757928647853,-151.0,0.00024658,2]
[385623372,1757928647862,-262.18076957,0.00024658,2]
[385623374,1757928647872,-500.0,0.00024658,2]
[385623376,1757928647881,-204.0,0.00024658,2]
[385623378,1757928647892,-152.99759498,0.00024658,2]
[385623380,1757928647902,-501.62793363,0.00024673,2]
[385623382,1757928647912,-302.78438721,0.00024702,2]
[385623384,1757928647921,-186.87575349,0.00024754,2]
[385623385,1757928647932,-935.03087013,0.00024771,2]
[385623387,1757928647950,-3053.45365568,0.00024774,2]
[385623389,1757928647964,-2518.86,0.00024799,2]
[385623390,1757928647978,-34204.18458262,0.000248,2]
[385623393,1757928647997,-192.235293,0.000248,2]
[385623395,1757928648008,-3992.41201218,0.000248,2]
[385623397,1757928648018,-151.0,0.000248,7]
[385623399,1757928648027,-842.15452164,0.00024802,2]
[385623401,1757928648037,-233.0,0.00024813,2]
[385623403,1757928648046,-1996.20600609,0.00024821,2]
[385623405,1757928648055,-151.0,0.00024821,7]
[385623407,1757928648064,-18688.16826621,0.00024831,2]
[385623409,1757928648073,-527.08471365,0.00024833,2]
[385623411,1757928648082,-500.0,0.00024873,2]
[385623413,1757928648091,-500.0,0.00024873,2]
[385623415,1757928648101,-500.0,0.00024873,2]
[385623417,1757928648110,-500.0,0.00024873,2]
[385623419,1757928648119,-500.0,0.00024873,2]
[385623421,1757928648129,-500.0,0.00024873,2]
[385623423,1757928648142,-500.0,0.00024873,2]
[385623425,1757928648152,-5000.0,0.00024878,30]
[385623427,1757928648161,-16644.2201167,0.00024898,2]
[385623429,1757928648172,-151.0,0.00024898,7]
[385623431,1757928648181,-151.0,0.000249,7]
[385623433,1757928648191,-151.0,0.000249,7]
[385623435,1757928648200,-281119.37507112,0.000249,2]
[385623444,1757928648282,-6725.51065213,0.000249,2]
[385623447,1757928648301,-10516.684434,0.000249,2]
[385623772,1757928653603,200.0,0.0002739,120]
[385623782,1757929028289,-661.0205532,0.00023656,2]
[385623789,1757929628124,-2008.23478177,0.0002121,10]
[385623790,1757929766082,-1200.0,0.00021209,2]
[385623791,1757929766102,-1924.97,0.0002121,10]
[385623792,1757929766124,-1833.43,0.0002121,10]
[385623793,1757929766144,-1527.86,0.0002121,10]
[385623794,1757929766165,-300.0,0.00021217,2]
[385623795,1757929766185,-500.0,0.00021218,2]
[385623796,1757929766206,-500.0,0.00021218,2]
[385623797,1757929766250,-169.74239394,0.00021218,2]
[385623798,1757929766272,-500.0,0.00021218,2]
[385623799,1757929766293,-500.0,0.00021218,2]
[385623800,1757929766319,-500.0,0.00021218,2]
[385623801,1757929766360,-605.07547847,0.00021218,2]
[385623802,1757929766381,-500.0,0.00021218,2]
[385623803,1757929766402,-500.0,0.00021218,2]
[385623804,1757929766426,-500.0,0.00021218,2]
[385623805,1757929766447,-500.0,0.00021218,2]
[385623806,1757929766470,-500.0,0.00021218,2]
[385623807,1757929766489,-500.0,0.00021218,2]
[385623808,1757929766511,-500.0,0.00021218,2]
[385623809,1757929766531,-504.82518163,0.00021218,2]
[385623810,1757929766552,-500.0,0.00021218,2]
[385623811,1757929766581,-500.0,0.00021218,2]
[385623812,1757929766601,-500.0,0.00021218,2]
[385623813,1757929766625,-500.0,0.00021218,2]
[385623814,1757929766645,-500.0,0.00021218,2]
[385623815,1757929766664,-500.0,0.00021218,2]
[385623816,1757929766687,-500.0,0.00021218,2]
[385623817,1757929766707,-500.0,0.00021218,2]
[385623818,1757929766729,-500.0,0.00021218,2]
[385623819,1757929766750,-500.0,0.00021218,2]
[385623820,1757929766772,-226.74700417,0.00021218,2]
[385623821,1757929766793,-500.0,0.00021218,2]
[385623822,1757929766817,-269.99634207,0.00021218,2]
[385623823,1757929766838,-500.0,0.00021218,2]
[385623824,1757929766864,-500.0,0.00021218,2]
[385623825,1757929766889,-500.0,0.00021218,2]
[385623826,1757929766913,-500.0,0.00021218,2]
[385623827,1757929766936,-500.0,0.00021218,2]
[385623828,1757929766961,-500.0,0.00021218,2]
[385623829,1757929766981,-500.0,0.00021218,2]
[385623830,1757929767001,-500.0,0.00021218,2]
[385623831,1757929767021,-500.0,0.00021218,2]
[385623832,1757929767042,-500.0,0.00021218,2]
[385623833,1757929767062,-50000.0,0.00021218,2]
[385623834,1757929767082,-504.86977798,0.00021219,2]
[385623835,1757929767101,-300.0,0.00021219,2]
[385623836,1757929767121,-300.0,0.00021219,2]
[385623837,1757929767141,-1200.0,0.00021219,2]
[385623838,1757929767160,-326.50135148,0.00021219,2]
[385623839,1757929767180,-245.88880156,0.00021219,2]
[385623840,1757929767200,-500.0,0.00021219,2]
[385623841,1757929767221,-261.89414327,0.00021219,2]
[385623842,1757929767243,-500.0,0.00021219,2]
[385623843,1757929767265,-500.0,0.00021219,2]
[385623844,1757929767286,-500.0,0.00021219,2]
[385623845,1757929767306,-500.0,0.00021219,2]
[385623846,1757929767327,-500.0,0.00021219,2]
[385623847,1757929767348,-36833.53785018,0.0002122,2]
[385623904,1757929831978,-161.1183986,0.00021119,2]
[385623905,1757929831993,-614.01,0.0002121,10]
[385623907,1757929832024,-300.0,0.00021219,2]
[385623909,1757929832035,-14030.99619698,0.0002122,2]
[385623911,1757929832047,-45331.92324022,0.0002122,2]
[385623913,1757929832059,-1128.6,0.0002122,2]
[385623928,1757929837877,-655.42084746,0.0002121,10]
[385623929,1757929837890,-394.97210337,0.0002121,10]
[385623930,1757929837928,-120.48704917,0.0002121,10]
[385623931,1757929837938,-580.74966713,0.00021219,2]
[385623932,1757929837947,-500.0,0.00021219,2]
[385623933,1757929837957,-400.56394205,0.00021219,2]
[385623934,1757929837967,-363.3329269,0.00021219,2]
[385623935,1757929837976,-397203.47271262,0.0002122,2]
[385623936,1757929837987,-500.0,0.00021273,2]
[385623937,1757929837997,-701.27315265,0.00021747,2]
[385623938,1757929838007,-1000.0,0.00021821,2]
[385623939,1757929838018,-161.11839859,0.00021848,2]
[385623940,1757929838029,-1500.0,0.00022368,2]
[385623941,1757929838039,-161.11839859,0.00022576,2]
[385623942,1757929838048,-2727.21284051,0.00022676,2]
[385623943,1757929838057,-30029.81,0.000227,7]
[385623944,1757929838066,-1923.01,0.000228,7]
[385623945,1757929838075,-14723.65730812,0.00022876,2]
[385623946,1757929838084,-2000.0,0.00022916,2]
[385623947,1757929838093,-701.27315259,0.00022951,2]
[385623948,1757929838102,-420.0,0.00023076,2]
[385623949,1757929838111,-295.4474759,0.00023198,2]
[385623950,1757929838120,-2727.21284051,0.00023198,2]
[385623951,1757929838129,-2413.91,0.00023287,2]
[385623952,1757929838138,-449.435417,0.0002331,2]
[385623953,1757929838147,-2500.0,0.00023464,2]
[385623954,1757929838157,-2727.21284051,0.0002372,2]
[385623955,1757929838166,-184.797994,0.00023873,2]
[385623956,1757929838175,-2013.42680806,0.00024012,2]
[385623957,1757929838185,-701.27315259,0.00024155,2]
[385623958,1757929838195,-2727.21284051,0.00024241,2]
[385623959,1757929838204,-1185.32391914,0.000245,2]
[385623960,1757929838213,-480.0,0.00024657,3]
[385623961,1757929838222,-480.0,0.00024657,3]
[385623962,1757929838230,-480.0,0.00024657,3]
[385623963,1757929838240,-629.27,0.00024657,3]
[385623964,1757929838249,-480.0,0.00024657,3]
[385623965,1757929838260,-174.48234282,0.00024657,3]
[385623966,1757929838271,-423.75429237,0.00024657,3]
[385623967,1757929838281,-1853.08,0.00024657,3]
[385623968,1757929838291,-480.0,0.00024657,3]
[385623969,1757929838300,-282.38,0.00024657,3]
[385623970,1757929838310,-480.0,0.00024657,3]
[385623971,1757929838319,-480.0,0.00024657,3]
[385623972,1757929838328,-252.61876092,0.00024657,3]
[385623973,1757929838339,-480.0,0.00024657,3]
[385623974,1757929838349,-480.0,0.00024657,3]
[385623975,1757929838358,-480.0,0.00024657,3]
[385623976,1757929838366,-8001.19,0.00024657,3]
[385623977,1757929838376,-480.0,0.00024657,3]
[385623978,1757929838385,-256.35753592,0.00024657,3]
[385623979,1757929838393,-480.0,0.00024657,3]
[385623980,1757929838402,-480.0,0.00024657,3]
[385623981,1757929838411,-480.0,0.00024657,3]
[385623982,1757929838420,-480.0,0.00024657,3]
[385623983,1757929838430,-480.0,0.00024657,3]
[385623984,1757929838440,-480.0,0.00024657,3]
[385623985,1757929838449,-480.0,0.00024657,3]
[385623986,1757929838458,-1339.64,0.00024657,3]
[385623987,1757929838467,-480.0,0.00024657,3]
[385623988,1757929838476,-480.0,0.00024657,3]
[385623989,1757929838485,-480.0,0.00024657,3]
[385623990,1757929838495,-480.0,0.00024657,3]
[385623991,1757929838504,-480.0,0.00024657,3]
[385623992,1757929838603,-480.0,0.00024657,3]
[385623993,1757929838642,-480.0,0.00024657,3]
[385623994,1757929838652,-480.0,0.00024657,3]
[385623995,1757929838661,-480.0,0.00024657,3]
[385623996,1757929838671,-480.0,0.00024657,3]
[385623997,1757929838679,-480.0,0.00024657,3]
[385623998,1757929838689,-480.0,0.00024657,3]
[385623999,1757929838699,-480.0,0.00024657,3]
[385624000,1757929838707,-480.0,0.00024657,3]
[385624001,1757929838717,-602.58,0.00024657,3]
[385624002,1757929838726,-480.0,0.00024657,3]
[385624003,1757929838735,-480.0,0.00024657,3]
[385624004,1757929838744,-480.0,0.00024657,3]
[385624005,1757929838753,-151.0,0.00024658,2]
[385624006,1757929838762,-151.0,0.00024658,2]
[385624007,1757929838771,-500.0,0.00024658,2]
[385624008,1757929838780,-500.0,0.00024658,2]
[385624009,1757929838789,-151.0,0.00024658,2]
[385624010,1757929838799,-151.0,0.00024658,2]
[385624011,1757929838808,-2727.21284051,0.00024763,2]
[385624012,1757929838817,-18664.5261569,0.000248,2]
[385624013,1757929838826,-11877.4257362,0.00024821,2]
[385624014,1757929838836,-370000.0,0.00024831,2]
[385624015,1757929838845,-180.993895,0.00024831,7]
[385624016,1757929838854,-1696.77510517,0.00024863,2]
[385624017,1757929838863,-500.0,0.00024873,2]
[385624018,1757929838874,-500.0,0.00024873,2]
[385624019,1757929838884,-181.21081558,0.00024873,2]
[385624020,1757929838893,-500.0,0.00024873,2]
[385624021,1757929838903,-500.0,0.00024873,2]
[385624022,1757929838912,-500.0,0.00024873,2]
[385624023,1757929838921,-500.0,0.00024873,2]
[385624024,1757929838930,-1155.6743438,0.00024878,2]
[385624025,1757929838940,-3568.5701498,0.00024878,2]
[385624026,1757929838949,-200.0,0.0002489,3]
[385624027,1757929838959,-2597.97371783,0.000249,30]
[385624028,1757929838967,-154.1822045,0.000249,2]
[385624029,1757929838977,-554763.763056,0.000249,2]
[385624030,1757929838986,-160.384065,0.000249,7]
[385624031,1757929838995,-151.0,0.000249,7]
[385624032,1757929839004,-151.0,0.000249,2]
[385624033,1757929839013,-155.2933993,0.000249,2]
[385624034,1757929839022,-500.98179676,0.00024906,9]
[385624035,1757929839031,-229.27267641,0.00024911,2]
[385624036,1757929839040,-160.0,0.00024931,3]
[385624037,1757929839049,-294.96565972,0.00024931,3]
[385624038,1757929839058,-480.0,0.00024931,3]
[385624039,1757929839067,-480.0,0.00024931,3]
[385624040,1757929839076,-189.48,0.00024931,3]
[385624041,1757929839085,-1853.08,0.00024931,3]
[385624042,1757929839095,-480.0,0.00024931,3]
[385624043,1757929839104,-480.0,0.00024931,3]
[385624044,1757929839113,-480.0,0.00024931,3]
[385624045,1757929839122,-480.0,0.00024931,3]
[385624046,1757929839131,-480.0,0.00024931,3]
[385624047,1757929839142,-480.0,0.00024931,3]
[385624048,1757929839151,-8001.19,0.00024931,3]
[385624049,1757929839160,-480.0,0.00024931,3]
[385624050,1757929839169,-480.0,0.00024931,3]
[385624051,1757929839178,-480.0,0.00024931,3]
[385624052,1757929839187,-480.0,0.00024931,3]
[385624053,1757929839197,-480.0,0.00024931,3]
[385624054,1757929839206,-295.10279992,0.00024931,3]
[385624055,1757929839215,-480.0,0.00024931,3]
[385624056,1757929839224,-480.0,0.00024931,3]
[385624058,1757929839234,-1339.64,0.00024931,3]
[385624059,1757929839243,-480.0,0.00024931,3]
[385624060,1757929839251,-480.0,0.00024931,3]
[385624061,1757929839264,-480.0,0.00024931,3]
[385624062,1757929839273,-495.27357478,0.00024931,3]
[385624063,1757929839283,-480.0,0.00024931,3]
[385624064,1757929839292,-480.0,0.00024931,3]
[385624065,1757929839302,-480.0,0.00024931,3]
[385624066,1757929839311,-480.0,0.00024931,3]
[385624067,1757929839320,-480.0,0.00024931,3]
[385624068,1757929839330,-219.36496415,0.00024931,3]
[385624069,1757929839339,-480.0,0.00024931,3]
[385624070,1757929839350,-480.0,0.00024931,3]
[385624071,1757929839359,-424.04,0.00024931,3]
[385624072,1757929839369,-508.11320462,0.00024931,3]
[385624073,1757929839378,-480.0,0.00024931,3]
[385624074,1757929839387,-480.0,0.00024931,3]
[385624075,1757929839396,-480.0,0.00024931,3]
[385624076,1757929839405,-151.0,0.00024932,2]
[385624077,1757929839415,-500.0,0.00024932,2]
[385624078,1757929839425,-500.0,0.00024932,2]
[385624079,1757929839434,-246.48333477,0.00024932,2]
[385624080,1757929839443,-1696.77510517,0.00024942,2]
[385624081,1757929839452,-1000.0,0.00024952,2]
[385624082,1757929839461,-1000.0,0.00024952,2]
[385624083,1757929839470,-1000.0,0.00024952,2]
[385624084,1757929839480,-1000.0,0.00024952,2]
[385624085,1757929839488,-1000.0,0.00024952,2]
[385624086,1757929839498,-1000.0,0.00024952,2]
[385624087,1757929839507,-1000.0,0.00024952,2]
[385624088,1757929839517,-1000.0,0.00024952,2]
[385624089,1757929839526,-1000.0,0.00024952,2]
[385624090,1757929839535,-1000.0,0.00024952,2]
[385624091,1757929839545,-1000.0,0.00024952,2]
[385624092,1757929839554,-811.97287705,0.00024952,2]
[385624093,1757929839563,-151.0,0.00024953,7]
[385624094,1757929839573,-500.0,0.00024973,2]
[385624095,1757929839582,-500.0,0.00024973,2]
[385624096,1757929839591,-500.0,0.00024973,2]
[385624097,1757929839601,-500.0,0.00024973,2]
[385624098,1757929839610,-500.0,0.00024973,2]
[385624099,1757929839619,-500.95830453,0.00024973,2]
[385624100,1757929839628,-823.68562564,0.00025,30]
[385624101,1757929839637,-2993.66281309,0.00025,2]
[385624102,1757929839647,-30029.81,0.00025,7]
[385624103,1757929839655,-1273.86796018,0.00025003,30]
[385624112,1757929839963,-3726.13203982,0.00025003,30]
[385624114,1757929839973,-5000.0,0.00025003,30]
[385624116,1757929839983,-531.33695587,0.00025003,30]
[385624118,1757929839992,-160.0,0.00025003,30]
[385624120,1757929840001,-417.15472785,0.00025003,30]
[385624122,1757929840011,-587.0,0.00025096,2]
[385624124,1757929840020,-600.0,0.00025149,20]
[385624126,1757929840029,-479.37627646,0.00025188,2]
[385624644,1757929954634,150.0,0.00027397,120]
[385624846,1757930830131,-182.42988125,0.00021558,2]
[385624847,1757930830152,-263.0,0.00022224,2]
[385624848,1757930830172,-300.0,0.00022224,2]
[385624849,1757930830195,-10587.83715118,0.00022225,2]
[385624850,1757930830218,-224.717708,0.00022902,2]
[385624851,1757930830240,-160.0,0.00023,2]
[385624852,1757930830264,-750.5774625,0.00023052,2]
[385624853,1757930830286,-420.0,0.00024145,2]
[385624854,1757930830307,-438.29572043,0.00024557,2]
[385624855,1757930830330,-500.0,0.00024656,2]
[385624856,1757930830470,-500.0,0.00024656,2]
[385624857,1757930830491,-500.0,0.00024656,2]
[385624858,1757930830512,-500.0,0.00024656,2]
[385624859,1757930830534,-500.0,0.00024656,2]
[385624860,1757930830556,-204.07230375,0.00024656,2]
[385624861,1757930830578,-500.0,0.00024656,2]
[385624862,1757930830600,-500.0,0.00024656,2]
[385624863,1757930830625,-500.0,0.00024656,2]
[385624864,1757930830645,-500.0,0.00024656,2]
[385624865,1757930830668,-169.74239394,0.00024656,2]
[385624866,1757930830692,-500.0,0.00024656,2]
[385624867,1757930830712,-504.82518163,0.00024656,2]
[385624868,1757930830733,-500.0,0.00024656,2]
[385624869,1757930830754,-500.0,0.00024656,2]
[385624870,1757930830776,-244.56793062,0.00024656,2]
[385624871,1757930830797,-500.0,0.00024656,2]
[385624872,1757930830817,-500.0,0.00024656,2]
[385624873,1757930830837,-500.0,0.00024656,2]
[385624874,1757930830858,-500.0,0.00024656,2]
[385624875,1757930830878,-500.0,0.00024656,2]
[385624876,1757930830899,-500.0,0.00024656,2]
[385624877,1757930830919,-500.0,0.00024656,2]
[385624878,1757930830940,-500.0,0.00024656,2]
[385624879,1757930830961,-500.0,0.00024656,2]
[385624880,1757930830982,-500.0,0.00024656,2]
[385624881,1757930831002,-500.0,0.00024656,2]
[385624882,1757930831023,-500.0,0.00024656,2]
[385624883,1757930831045,-500.0,0.00024656,2]
[385624884,1757930831067,-500.0,0.00024656,2]
[385624885,1757930831088,-500.0,0.00024656,2]
[385624886,1757930831109,-500.0,0.00024656,2]
[385624887,1757930831130,-492.99670786,0.00024656,2]
[385624888,1757930831150,-500.0,0.00024656,2]
[385624889,1757930831172,-500.0,0.00024656,2]
[385624890,1757930831193,-5625.14332727,0.00024657,2]
[385624891,1757930831215,-480.0,0.00024657,3]
[385624892,1757930831236,-424.04,0.00024657,3]
[385624893,1757930831256,-480.0,0.00024657,3]
[385624894,1757930831277,-480.0,0.00024657,3]
[385624895,1757930831298,-492.16,0.00024657,3]
[385624896,1757930831318,-189.48,0.00024657,3]
[385624897,1757930831339,-7334.43,0.00024657,3]
[385624898,1757930831361,-480.0,0.00024657,3]
[385624899,1757930831381,-480.0,0.00024657,3]
[385624900,1757930831403,-480.0,0.00024657,3]
[385624901,1757930831423,-480.0,0.00024657,3]
[385624902,1757930831444,-480.0,0.00024657,3]
[385624903,1757930831463,-480.0,0.00024657,3]
[385624904,1757930831482,-495.27357478,0.00024657,3]
[385624905,1757930831501,-480.0,0.00024657,3]
[385624906,1757930831521,-480.0,0.00024657,3]
[385624907,1757930831542,-480.0,0.00024657,3]
[385624908,1757930831563,-480.0,0.00024657,3]
[385624909,1757930831584,-1308.87,0.00024657,3]
[385624910,1757930831609,-480.0,0.00024657,3]
[385624911,1757930831631,-480.0,0.00024657,3]
[385624912,1757930831652,-480.0,0.00024657,3]
[385624913,1757930831675,-480.0,0.00024657,3]
[385624914,1757930831696,-480.0,0.00024657,3]
[385624915,1757930831717,-480.0,0.00024657,3]
[385624916,1757930831738,-480.0,0.00024657,3]
[385624917,1757930831759,-219.36496415,0.00024657,3]
[385624918,1757930831782,-508.11320462,0.00024657,3]
[385624919,1757930831804,-480.0,0.00024657,3]
[385624920,1757930831824,-480.0,0.00024657,3]
[385624921,1757930831845,-1775.87,0.00024657,3]
[385624922,1757930831865,-480.0,0.00024657,3]
[385624923,1757930831885,-480.0,0.00024657,3]
[385624924,1757930831906,-480.0,0.00024657,3]
[385624925,1757930831937,-480.0,0.00024657,3]
[385624926,1757930831958,-480.0,0.00024657,3]
[385624927,1757930831979,-480.0,0.00024657,3]
[385624928,1757930831999,-500.0,0.00024907,9]
[385624929,1757930832020,-228.55094604,0.0002493,2]
[385624930,1757930832041,-500.0,0.0002493,2]
[385624931,1757930832066,-172.12216109,0.0002493,2]
[385624932,1757930832088,-500.0,0.0002493,2]
[385624933,1757930832110,-500.0,0.0002493,2]
[385624934,1757930832131,-500.0,0.0002493,2]
[385624935,1757930832150,-283.32590029,0.0002493,2]
[385624936,1757930832172,-480.0,0.00024931,3]
[385624937,1757930832192,-480.0,0.00024931,3]
[385624938,1757930832212,-541.07717111,0.00024931,3]
[385624939,1757930832235,-492.16,0.00024931,3]
[385624940,1757930832254,-246.48333477,0.00024931,3]
[385624941,1757930832274,-151.0,0.00024931,3]
[385624942,1757930832295,-5668.85192322,0.00024931,3]
[385624943,1757930848525,500.98293698,0.00030238,120]
[385624944,1757930857925,157.97246439,0.00030238,50]
[385624945,1757930869046,415.43772644,0.00027397,120]
[385624948,1757930914167,151.0,0.00024,120]
[385624949,1757930915554,151.0,0.000254,120]
[385624950,1757930916950,151.0,0.000269,120]
[385624951,1757930928230,397.0,0.00025085,120]
[385624952,1757930928641,648.0,0.00025085,120]
[385624953,1757930928730,397.0,0.00025075,120]
[385624954,1757930929097,648.0,0.00025075,120]
[385624955,1757930929182,397.0,0.00025065,120]
[385624956,1757930929563,648.0,0.00025065,120]
[385624957,1757930929650,397.0,0.0002698,120]
[385624958,1757930930028,648.0,0.0002698,120]
[385624959,1757930930390,397.0,0.0002697,120]
[385624960,1757930930496,648.0,0.0002697,120]
[385624961,1757930930881,397.0,0.0002696,120]
[385624962,1757930930952,648.0,0.0002696,120]
[385624963,1757930930981,500.0,0.00024188,120]
[385624964,1757930931762,319.37,0.00024188,120]
[385624971,1757930971455,908.4490825,0.000199,2]
[385624972,1757930971550,908.44908238,0.00021149,2]
[385624973,1757930971650,908.44908238,0.00022398,2]
[385624974,1757930971763,908.44908238,0.00023647,2]
[385624975,1757931014350,291.502304,0.00027397,120]
[385624976,1757931022828,357.58009,0.00027,120]
[385625015,1757931032322,-2303.98732467,0.00023921,2]